[Event "Titled Tuesday Blitz April 25 Late 2023"]
[White "Broca Jimenez, Fernando"]
[Black "Vifleemskaia, Svetlana"]
[WhiteFideId "5104742"]
[BlackFideId "4129490"]
[WhiteElo "2062"]
[BlackElo "1930"]
[Result "1/2-1/2"]
[Round "08"]
[TimeControl "180+2"]
[Date "2023.04.25"]
[WhiteClock "0:00:07"]
[BlackClock "0:00:07"]

1. e4 {[%clk 0:03:00]}  e5 {[%clk 0:02:54]} 2. Nf3 {[%clk 0:02:59]}  Nc6 {[%clk 0:02:54]} 3. Bb5 {[%clk 0:03:00]}  a6 {[%clk 0:02:54]} 4. Ba4 {[%clk 0:03:00]}  Nf6 {[%clk 0:02:51]} 5. O-O {[%clk 0:02:59]}  Be7 {[%clk 0:02:50]} 6. Re1 {[%clk 0:03:00]}  b5 {[%clk 0:02:48]} 7. Bb3 {[%clk 0:03:01]}  d6 {[%clk 0:02:49]} 8. c3 {[%clk 0:02:57]}  O-O {[%clk 0:02:48]} 9. h3 {[%clk 0:02:57]}  Nd7 {[%clk 0:02:44]} 10. Bd5 {[%clk 0:02:29]}  Bb7 {[%clk 0:02:43]} 11. d3 {[%clk 0:02:29]}  Kh8 {[%clk 0:02:34]} 12. g4 {[%clk 0:02:28]}  h6 {[%clk 0:02:21]} 13. Be3 {[%clk 0:02:23]}  Na5 {[%clk 0:02:19]} 14. Bxb7 {[%clk 0:02:13]}  Nxb7 {[%clk 0:02:19]} 15. Nbd2 {[%clk 0:02:13]}  c5 {[%clk 0:02:14]} 16. Nf1 {[%clk 0:02:11]}  Re8 {[%clk 0:02:02]} 17. Qd2 {[%clk 0:02:10]}  Bf8 {[%clk 0:02:02]} 18. Ng3 {[%clk 0:02:09]}  Kh7 {[%clk 0:01:59]} 19. Nf5 {[%clk 0:01:57]}  Nb6 {[%clk 0:01:50]} 20. Kh2 {[%clk 0:01:22]}  d5 {[%clk 0:01:48]} 21. Qe2 {[%clk 0:00:49]}  g6 {[%clk 0:01:43]} 22. Ng3 {[%clk 0:00:48]}  d4 {[%clk 0:01:37]} 23. cxd4 {[%clk 0:00:38]}  cxd4 {[%clk 0:01:31]} 24. Bd2 {[%clk 0:00:38]}  Rc8 {[%clk 0:01:31]} 25. Rec1 {[%clk 0:00:38]}  Qf6 {[%clk 0:01:24]} 26. Ne1 {[%clk 0:00:29]}  Na4 {[%clk 0:01:17]} 27. Rab1 {[%clk 0:00:17]}  Qe6 {[%clk 0:01:11]} 28. b3 {[%clk 0:00:07]}  Nc3 {[%clk 0:01:10]} 29. Bxc3 {[%clk 0:00:07]}  dxc3 {[%clk 0:01:10]} 30. Rc2 {[%clk 0:00:07]}  b4 {[%clk 0:01:10]} 31. Rbc1 {[%clk 0:00:07]}  Bc5 {[%clk 0:01:06]} 32. Nf1 {[%clk 0:00:07]}  Qf6 {[%clk 0:01:03]} 33. Ne3 {[%clk 0:00:07]}  Bxe3 {[%clk 0:00:59]} 34. fxe3 {[%clk 0:00:07]}  Nc5 {[%clk 0:00:56]} 35. Kg2 {[%clk 0:00:06]}  Rcd8 {[%clk 0:00:50]} 36. Rd1 {[%clk 0:00:06]}  a5 {[%clk 0:00:48]} 37. Rcc1 {[%clk 0:00:05]}  Rd7 {[%clk 0:00:44]} 38. Qf3 {[%clk 0:00:06]}  Qh4 {[%clk 0:00:35]} 39. d4 {[%clk 0:00:05]}  Nb7 {[%clk 0:00:11]} 40. d5 {[%clk 0:00:05]}  Nd6 {[%clk 0:00:10]} 41. Kh2 {[%clk 0:00:05]}  Rc7 {[%clk 0:00:08]} 42. Ng2 {[%clk 0:00:05]}  Qe7 {[%clk 0:00:07]} 43. h4 {[%clk 0:00:06]}  Kg7 {[%clk 0:00:07]} 44. Kh3 {[%clk 0:00:06]}  Qd7 {[%clk 0:00:07]} 45. Kg3 {[%clk 0:00:06]}  Qe7 {[%clk 0:00:07]} 46. Kh3 {[%clk 0:00:06]}  Qd7 {[%clk 0:00:07]} 47. Kg3 {[%clk 0:00:07]}  Qe7 {[%clk 0:00:07]} 48. Kh3 {[%clk 0:00:07]} 1/2-1/2


[Site "https://www.chess.com"]

[Event "Titled Tuesday Blitz April 25 Late 2023"]
[White "Lutz, Igor Oscar"]
[Black "Allahverdiyeva, Ayan"]
[WhiteFideId "2110806"]
[BlackFideId "13412590"]
[WhiteElo "1969"]
[BlackElo "1980"]
[Result "0-1"]
[Round "08"]
[TimeControl "180+2"]
[Date "2023.04.25"]
[WhiteClock "0:01:29"]
[BlackClock "0:01:42"]

1. d4 {[%clk 0:03:00]}  Nf6 {[%clk 0:02:52]} 2. c4 {[%clk 0:03:01]}  e6 {[%clk 0:02:50]} 3. g3 {[%clk 0:03:01]}  Bb4+ {[%clk 0:02:46]} 4. Bd2 {[%clk 0:03:01]}  Be7 {[%clk 0:02:44]} 5. Bg2 {[%clk 0:03:01]}  O-O {[%clk 0:02:41]} 6. e4 {[%clk 0:02:58]}  d5 {[%clk 0:02:37]} 7. e5 {[%clk 0:02:58]}  Ne4 {[%clk 0:02:36]} 8. Nc3 {[%clk 0:02:51]}  Nxd2 {[%clk 0:02:32]} 9. Qxd2 {[%clk 0:02:50]}  dxc4 {[%clk 0:02:33]} 10. Nf3 {[%clk 0:02:42]}  c5 {[%clk 0:02:12]} 11. O-O {[%clk 0:02:35]}  Nc6 {[%clk 0:02:11]} 12. Rfd1 {[%clk 0:02:14]}  cxd4 {[%clk 0:02:02]} 13. Nxd4 {[%clk 0:02:14]}  Nxe5 {[%clk 0:02:02]} 14. Nce2 {[%clk 0:01:48]}  Bf6 {[%clk 0:01:54]} 15. Qc3 {[%clk 0:01:41]}  Qb6 {[%clk 0:01:42]} 16. Qxc4 {[%clk 0:01:29]}  Nxc4 {[%clk 0:01:42]} 0-1


[Site "https://www.chess.com"]

[Event "Titled Tuesday Blitz April 25 Late 2023"]
[White "Rosenberg, Evan S"]
[Black "Toma, Katarzyna"]
[WhiteFideId "2019299"]
[BlackFideId "1119907"]
[WhiteElo "1956"]
[BlackElo "2149"]
[Result "1-0"]
[Round "08"]
[TimeControl "180+2"]
[Date "2023.04.25"]
[WhiteClock "0:01:03"]
[BlackClock "0:00:01"]

1. d4 {[%clk 0:03:00]}  d5 {[%clk 0:02:55]} 2. Nf3 {[%clk 0:03:00]}  Nf6 {[%clk 0:02:53]} 3. c4 {[%clk 0:03:00]}  e6 {[%clk 0:02:52]} 4. g3 {[%clk 0:03:00]}  c6 {[%clk 0:02:50]} 5. Bg2 {[%clk 0:03:00]}  Be7 {[%clk 0:02:50]} 6. O-O {[%clk 0:03:01]}  O-O {[%clk 0:02:50]} 7. Nc3 {[%clk 0:03:01]}  Nbd7 {[%clk 0:02:48]} 8. Qd3 {[%clk 0:02:59]}  dxc4 {[%clk 0:02:41]} 9. Qxc4 {[%clk 0:02:58]}  Nb6 {[%clk 0:02:41]} 10. Qd3 {[%clk 0:02:55]}  Nbd5 {[%clk 0:02:33]} 11. e4 {[%clk 0:02:49]}  Nxc3 {[%clk 0:02:32]} 12. bxc3 {[%clk 0:02:46]}  c5 {[%clk 0:02:31]} 13. e5 {[%clk 0:02:46]}  Nd5 {[%clk 0:02:29]} 14. h4 {[%clk 0:02:43]}  h5 {[%clk 0:02:15]} 15. Bg5 {[%clk 0:02:29]}  cxd4 {[%clk 0:02:05]} 16. cxd4 {[%clk 0:02:28]}  Bd7 {[%clk 0:01:13]} 17. Bxe7 {[%clk 0:02:25]}  Qxe7 {[%clk 0:01:12]} 18. Ng5 {[%clk 0:02:25]}  g6 {[%clk 0:01:10]} 19. Bxd5 {[%clk 0:02:25]}  exd5 {[%clk 0:01:09]} 20. Rac1 {[%clk 0:02:20]}  Bf5 {[%clk 0:01:07]} 21. Qe3 {[%clk 0:02:16]}  Rac8 {[%clk 0:00:59]} 22. f3 {[%clk 0:02:11]}  Rc7 {[%clk 0:00:46]} 23. Rxc7 {[%clk 0:02:06]}  Qxc7 {[%clk 0:00:46]} 24. Rc1 {[%clk 0:02:06]}  Qa5 {[%clk 0:00:43]} 25. a3 {[%clk 0:02:02]}  Rc8 {[%clk 0:00:37]} 26. e6 {[%clk 0:01:58]}  Rxc1+ {[%clk 0:00:36]} 27. Qxc1 {[%clk 0:01:58]}  Bxe6 {[%clk 0:00:30]} 28. Nxe6 {[%clk 0:01:57]}  fxe6 {[%clk 0:00:30]} 29. Qc8+ {[%clk 0:01:56]}  Kf7 {[%clk 0:00:30]} 30. Qxb7+ {[%clk 0:01:56]}  Kf6 {[%clk 0:00:30]} 31. Qb4 {[%clk 0:01:25]}  Qxb4 {[%clk 0:00:23]} 32. axb4 {[%clk 0:01:25]}  e5 {[%clk 0:00:23]} 33. dxe5+ {[%clk 0:01:22]}  Kxe5 {[%clk 0:00:23]} 34. Kf2 {[%clk 0:01:23]}  Kd4 {[%clk 0:00:23]} 35. g4 {[%clk 0:01:24]}  Kc3 {[%clk 0:00:18]} 36. f4 {[%clk 0:01:22]}  d4 {[%clk 0:00:16]} 37. f5 {[%clk 0:01:20]}  gxf5 {[%clk 0:00:15]} 38. gxh5 {[%clk 0:01:17]}  d3 {[%clk 0:00:15]} 39. h6 {[%clk 0:01:18]}  d2 {[%clk 0:00:15]} 40. h7 {[%clk 0:01:18]}  d1=Q {[%clk 0:00:14]} 41. h8=Q+ {[%clk 0:01:19]}  Kxb4 {[%clk 0:00:14]} 42. Qb8+ {[%clk 0:01:15]}  Kc5 {[%clk 0:00:12]} 43. Qxa7+ {[%clk 0:01:15]}  Kc4 {[%clk 0:00:11]} 44. Qc7+ {[%clk 0:01:12]}  Kb5 {[%clk 0:00:11]} 45. Qe5+ {[%clk 0:01:10]}  Ka4 {[%clk 0:00:10]} 46. Qf4+ {[%clk 0:01:02]}  Kb3 {[%clk 0:00:05]} 47. Qf3+ {[%clk 0:01:02]}  Qxf3+ {[%clk 0:00:03]} 48. Kxf3 {[%clk 0:01:03]}  Kc4 {[%clk 0:00:01]} 49. Kf4 {[%clk 0:01:02]}  Kd5 {[%clk 0:00:01]} 50. Kxf5 {[%clk 0:01:03]} 1-0


[Site "https://www.chess.com"]

[Event "Titled Tuesday Blitz April 25 Late 2023"]
[White "Van Foreest, Jorden"]
[Black "Bluebaum, Matthias"]
[WhiteFideId "1039784"]
[BlackFideId "24651516"]
[WhiteElo "2633"]
[BlackElo "2638"]
[Result "0-1"]
[Round "09"]
[TimeControl "180+2"]
[Date "2023.04.25"]
[WhiteClock "0:00:04"]
[BlackClock "0:00:36"]

1. e4 {[%clk 0:02:51]}  e6 {[%clk 0:03:00]} 2. d4 {[%clk 0:02:48]}  d5 {[%clk 0:03:01]} 3. Nc3 {[%clk 0:02:48]}  Nf6 {[%clk 0:03:01]} 4. Bg5 {[%clk 0:02:45]}  dxe4 {[%clk 0:03:01]} 5. Nxe4 {[%clk 0:02:44]}  Be7 {[%clk 0:03:02]} 6. Nxf6+ {[%clk 0:02:43]}  Bxf6 {[%clk 0:03:02]} 7. Bxf6 {[%clk 0:02:43]}  Qxf6 {[%clk 0:03:03]} 8. Nf3 {[%clk 0:02:43]}  O-O {[%clk 0:03:04]} 9. Bd3 {[%clk 0:02:39]}  c5 {[%clk 0:03:03]} 10. O-O {[%clk 0:02:23]}  cxd4 {[%clk 0:03:02]} 11. Nxd4 {[%clk 0:02:22]}  e5 {[%clk 0:03:03]} 12. Nb5 {[%clk 0:02:19]}  Nc6 {[%clk 0:03:03]} 13. Nc7 {[%clk 0:02:18]}  Rb8 {[%clk 0:03:03]} 14. Nd5 {[%clk 0:02:19]}  Qd8 {[%clk 0:02:56]} 15. Ne3 {[%clk 0:02:05]}  Be6 {[%clk 0:02:57]} 16. Be4 {[%clk 0:02:03]}  f5 {[%clk 0:02:54]} 17. Qxd8 {[%clk 0:02:00]}  Rbxd8 {[%clk 0:02:52]} 18. Bxc6 {[%clk 0:02:00]}  bxc6 {[%clk 0:02:53]} 19. f4 {[%clk 0:02:00]}  exf4 {[%clk 0:02:42]} 20. Rxf4 {[%clk 0:02:01]}  g5 {[%clk 0:02:42]} 21. Ra4 {[%clk 0:02:01]}  f4 {[%clk 0:02:40]} 22. Nf1 {[%clk 0:02:01]}  Rd7 {[%clk 0:02:19]} 23. Re1 {[%clk 0:02:01]}  Bf5 {[%clk 0:02:18]} 24. h4 {[%clk 0:01:59]}  Bxc2 {[%clk 0:02:07]} 25. Rc4 {[%clk 0:01:51]}  Bd3 {[%clk 0:02:07]} 26. Rxc6 {[%clk 0:01:51]}  g4 {[%clk 0:02:01]} 27. Nh2 {[%clk 0:01:47]}  h5 {[%clk 0:01:56]} 28. Rc5 {[%clk 0:01:47]}  Rf5 {[%clk 0:01:48]} 29. Rc8+ {[%clk 0:01:28]}  Kg7 {[%clk 0:01:48]} 30. Nf1 {[%clk 0:01:27]}  Rfd5 {[%clk 0:01:40]} 31. g3 {[%clk 0:01:24]}  f3 {[%clk 0:01:25]} 32. Ne3 {[%clk 0:01:24]}  Re5 {[%clk 0:01:14]} 33. Rcc1 {[%clk 0:00:38]}  Bg6 {[%clk 0:01:08]} 34. Nf1 {[%clk 0:00:38]}  Re2 {[%clk 0:00:54]} 35. Rxe2 {[%clk 0:00:32]}  fxe2 {[%clk 0:00:55]} 36. Ne3 {[%clk 0:00:32]}  Rf7 {[%clk 0:00:56]} 37. Re1 {[%clk 0:00:20]}  Bd3 {[%clk 0:00:56]} 38. Kg2 {[%clk 0:00:12]}  Rf3 {[%clk 0:00:56]} 39. Nc2 {[%clk 0:00:03]}  Rf1 {[%clk 0:00:47]} 40. b3 {[%clk 0:00:03]}  Be4+ {[%clk 0:00:41]} 41. Kh2 {[%clk 0:00:03]}  Rf2+ {[%clk 0:00:36]} 42. Kg1 {[%clk 0:00:02]}  Rg2+ {[%clk 0:00:37]} 43. Kh1 {[%clk 0:00:03]}  Rxg3+ {[%clk 0:00:37]} 44. Kh2 {[%clk 0:00:03]}  Rh3+ {[%clk 0:00:35]} 45. Kg1 {[%clk 0:00:04]}  g3 {[%clk 0:00:36]} 0-1


[Site "https://www.chess.com"]

[Event "Titled Tuesday Blitz April 25 Late 2023"]
[White "Kuzubov, Yuriy"]
[Black "Lazavik, Denis"]
[WhiteFideId "14112906"]
[BlackFideId "13515110"]
[WhiteElo "2496"]
[BlackElo "2560"]
[Result "1-0"]
[Round "09"]
[TimeControl "180+2"]
[Date "2023.04.25"]
[WhiteClock "0:00:11"]
[BlackClock "0:00:05"]

1. d4 {[%clk 0:02:56]}  d5 {[%clk 0:03:00]} 2. c4 {[%clk 0:02:56]}  c6 {[%clk 0:03:01]} 3. Nf3 {[%clk 0:02:56]}  Nf6 {[%clk 0:03:01]} 4. Nc3 {[%clk 0:02:57]}  dxc4 {[%clk 0:03:01]} 5. a4 {[%clk 0:02:57]}  Bf5 {[%clk 0:03:01]} 6. Nh4 {[%clk 0:02:58]}  e6 {[%clk 0:03:01]} 7. Nxf5 {[%clk 0:02:58]}  exf5 {[%clk 0:03:02]} 8. e3 {[%clk 0:02:59]}  Bb4 {[%clk 0:03:00]} 9. Bxc4 {[%clk 0:02:59]}  O-O {[%clk 0:03:01]} 10. O-O {[%clk 0:02:58]}  Nbd7 {[%clk 0:03:02]} 11. Qc2 {[%clk 0:02:58]}  Nb6 {[%clk 0:03:00]} 12. Bb3 {[%clk 0:02:57]}  Qd7 {[%clk 0:03:00]} 13. f3 {[%clk 0:02:56]}  a5 {[%clk 0:02:44]} 14. Kh1 {[%clk 0:02:43]}  Rfe8 {[%clk 0:02:42]} 15. Bd2 {[%clk 0:02:31]}  f4 {[%clk 0:01:58]} 16. e4 {[%clk 0:02:22]}  Qxd4 {[%clk 0:01:53]} 17. Bxf4 {[%clk 0:02:21]}  Qc5 {[%clk 0:01:50]} 18. Rad1 {[%clk 0:02:11]}  Nbd7 {[%clk 0:01:48]} 19. Qb1 {[%clk 0:01:38]}  Qe7 {[%clk 0:01:43]} 20. Ne2 {[%clk 0:01:36]}  Nc5 {[%clk 0:01:42]} 21. Bc2 {[%clk 0:01:34]}  Ne6 {[%clk 0:01:23]} 22. Bc1 {[%clk 0:01:33]}  Nc5 {[%clk 0:01:10]} 23. Ng3 {[%clk 0:01:29]}  g6 {[%clk 0:00:51]} 24. Bg5 {[%clk 0:01:27]}  Qe6 {[%clk 0:00:52]} 25. Ne2 {[%clk 0:01:15]}  Nfd7 {[%clk 0:00:41]} 26. Nd4 {[%clk 0:01:11]}  Qe5 {[%clk 0:00:38]} 27. f4 {[%clk 0:01:11]}  Qg7 {[%clk 0:00:38]} 28. e5 {[%clk 0:01:08]}  f6 {[%clk 0:00:31]} 29. exf6 {[%clk 0:01:05]}  Nxf6 {[%clk 0:00:32]} 30. f5 {[%clk 0:01:02]}  Nfe4 {[%clk 0:00:32]} 31. Bc1 {[%clk 0:00:41]}  Rad8 {[%clk 0:00:31]} 32. Qa2+ {[%clk 0:00:34]}  Kh8 {[%clk 0:00:27]} 33. Qc4 {[%clk 0:00:32]}  Nd6 {[%clk 0:00:20]} 34. Qa2 {[%clk 0:00:30]}  Nde4 {[%clk 0:00:20]} 35. fxg6 {[%clk 0:00:20]}  Rxd4 {[%clk 0:00:13]} 36. Rxd4 {[%clk 0:00:19]}  Nf2+ {[%clk 0:00:13]} 37. Kg1 {[%clk 0:00:18]}  Qxd4 {[%clk 0:00:12]} 38. Qf7 {[%clk 0:00:16]}  Nh3+ {[%clk 0:00:06]} 39. Kh1 {[%clk 0:00:16]}  Nf2+ {[%clk 0:00:07]} 40. Rxf2 {[%clk 0:00:16]}  Re1+ {[%clk 0:00:06]} 41. Rf1 {[%clk 0:00:16]}  Rxf1+ {[%clk 0:00:06]} 42. Qxf1 {[%clk 0:00:16]}  hxg6 {[%clk 0:00:07]} 43. Qf8+ {[%clk 0:00:16]}  Kh7 {[%clk 0:00:07]} 44. Qf7+ {[%clk 0:00:16]}  Kh8 {[%clk 0:00:07]} 45. Qe8+ {[%clk 0:00:16]}  Kg7 {[%clk 0:00:07]} 46. Qxg6+ {[%clk 0:00:16]}  Kf8 {[%clk 0:00:08]} 47. Qf5+ {[%clk 0:00:16]}  Ke8 {[%clk 0:00:07]} 48. h3 {[%clk 0:00:15]}  Nd7 {[%clk 0:00:06]} 49. Bg5 {[%clk 0:00:14]}  Be7 {[%clk 0:00:03]} 50. Qe6 {[%clk 0:00:13]}  Qd6 {[%clk 0:00:03]} 51. Qxd6 {[%clk 0:00:13]}  Bxd6 {[%clk 0:00:04]} 52. Bg6+ {[%clk 0:00:13]}  Kf8 {[%clk 0:00:04]} 53. h4 {[%clk 0:00:13]}  Be5 {[%clk 0:00:05]} 54. b3 {[%clk 0:00:13]}  Nc5 {[%clk 0:00:05]} 55. Bc2 {[%clk 0:00:14]}  Ne6 {[%clk 0:00:05]} 56. Bd2 {[%clk 0:00:14]}  Nd4 {[%clk 0:00:05]} 57. Bd1 {[%clk 0:00:13]}  Nf5 {[%clk 0:00:06]} 58. Bxa5 {[%clk 0:00:11]}  Nxh4 {[%clk 0:00:06]} 59. Kg1 {[%clk 0:00:11]}  Nf5 {[%clk 0:00:06]} 60. Kf2 {[%clk 0:00:12]}  Ke7 {[%clk 0:00:06]} 61. Kf3 {[%clk 0:00:11]}  Ke6 {[%clk 0:00:06]} 62. Ke4 {[%clk 0:00:10]}  Nd6+ {[%clk 0:00:07]} 63. Kd3 {[%clk 0:00:11]}  b5 {[%clk 0:00:06]} 64. Bb4 {[%clk 0:00:10]}  Nf5 {[%clk 0:00:05]} 65. Bg4 {[%clk 0:00:10]}  Kf6 {[%clk 0:00:04]} 66. Bxf5 {[%clk 0:00:10]}  Kxf5 {[%clk 0:00:05]} 67. a5 {[%clk 0:00:11]} 1-0


[Site "https://www.chess.com"]

[Event "Titled Tuesday Blitz April 25 Late 2023"]
[White "Bortnyk, Olexandr"]
[Black "Anton Guijarro, David"]
[WhiteFideId "14120828"]
[BlackFideId "2285525"]
[WhiteElo "2734"]
[BlackElo "2618"]
[Result "1-0"]
[Round "09"]
[TimeControl "180+2"]
[Date "2023.04.25"]
[WhiteClock "0:00:01"]
[BlackClock "0:00:01"]

1. d4 {[%clk 0:03:00]}  Nf6 {[%clk 0:03:00]} 2. Nc3 {[%clk 0:03:01]}  d5 {[%clk 0:02:59]} 3. Bf4 {[%clk 0:03:02]}  e6 {[%clk 0:02:57]} 4. Nb5 {[%clk 0:03:02]}  Bd6 {[%clk 0:02:55]} 5. Nxd6+ {[%clk 0:03:01]}  cxd6 {[%clk 0:02:56]} 6. e3 {[%clk 0:03:02]}  O-O {[%clk 0:02:57]} 7. Nf3 {[%clk 0:03:01]}  Nc6 {[%clk 0:02:56]} 8. h3 {[%clk 0:03:02]}  Re8 {[%clk 0:02:56]} 9. c3 {[%clk 0:02:57]}  h6 {[%clk 0:02:52]} 10. Bh2 {[%clk 0:02:54]}  a6 {[%clk 0:02:45]} 11. Be2 {[%clk 0:02:52]}  e5 {[%clk 0:02:45]} 12. O-O {[%clk 0:02:53]}  Bf5 {[%clk 0:02:44]} 13. Qb3 {[%clk 0:02:52]}  Qc7 {[%clk 0:02:41]} 14. a4 {[%clk 0:02:50]}  Rad8 {[%clk 0:02:40]} 15. Qa3 {[%clk 0:02:49]}  Na5 {[%clk 0:02:36]} 16. Rac1 {[%clk 0:02:42]}  Nc4 {[%clk 0:02:32]} 17. Bxc4 {[%clk 0:02:23]}  dxc4 {[%clk 0:02:32]} 18. Rfe1 {[%clk 0:02:19]}  Bd3 {[%clk 0:02:31]} 19. b3 {[%clk 0:02:13]}  e4 {[%clk 0:02:25]} 20. Nd2 {[%clk 0:02:10]}  b5 {[%clk 0:02:21]} 21. b4 {[%clk 0:01:55]}  Nd5 {[%clk 0:02:17]} 22. Ra1 {[%clk 0:01:51]}  f5 {[%clk 0:02:03]} 23. Nf1 {[%clk 0:01:33]}  g5 {[%clk 0:01:56]} 24. Ng3 {[%clk 0:01:14]}  Qf7 {[%clk 0:01:54]} 25. axb5 {[%clk 0:01:05]}  axb5 {[%clk 0:01:55]} 26. Qa7 {[%clk 0:01:05]}  Rd7 {[%clk 0:01:43]} 27. Qa6 {[%clk 0:00:56]}  f4 {[%clk 0:01:40]} 28. Nf1 {[%clk 0:00:41]}  Nxc3 {[%clk 0:01:31]} 29. Qc6 {[%clk 0:00:28]}  Rf8 {[%clk 0:01:15]} 30. exf4 {[%clk 0:00:25]}  gxf4 {[%clk 0:00:57]} 31. Nd2 {[%clk 0:00:26]}  e3 {[%clk 0:00:39]} 32. fxe3 {[%clk 0:00:24]}  fxe3 {[%clk 0:00:40]} 33. Rxe3 {[%clk 0:00:17]}  Qf2+ {[%clk 0:00:34]} 34. Kh1 {[%clk 0:00:17]}  Rg7 {[%clk 0:00:21]} 35. Rxd3 {[%clk 0:00:18]}  cxd3 {[%clk 0:00:20]} 36. Bxd6 {[%clk 0:00:17]}  Rf6 {[%clk 0:00:14]} 37. Rf1 {[%clk 0:00:17]}  Qxf1+ {[%clk 0:00:06]} 38. Nxf1 {[%clk 0:00:15]}  Rxf1+ {[%clk 0:00:07]} 39. Kh2 {[%clk 0:00:16]}  d2 {[%clk 0:00:08]} 40. Be5 {[%clk 0:00:01]}  d1=Q {[%clk 0:00:08]} 41. Bxg7 {[%clk 0:00:02]}  Kxg7 {[%clk 0:00:08]} 42. Qc7+ {[%clk 0:00:01]}  Rf7 {[%clk 0:00:07]} 43. Qxc3 {[%clk 0:00:01]}  Qh5 {[%clk 0:00:04]} 44. d5+ {[%clk 0:00:01]}  Kh7 {[%clk 0:00:03]} 45. d6 {[%clk 0:00:02]}  Qf5 {[%clk 0:00:02]} 46. Qc6 {[%clk 0:00:01]}  Qf4+ {[%clk 0:00:01]} 47. Kh1 {[%clk 0:00:01]} 1-0


[Site "https://www.chess.com"]

[Event "Titled Tuesday Blitz April 25 Late 2023"]
[White "Caruana, Fabiano"]
[Black "Rozen, Eytan"]
[WhiteFideId "2020009"]
[BlackFideId "2816750"]
[WhiteElo "2837"]
[BlackElo "2451"]
[Result "1-0"]
[Round "09"]
[TimeControl "180+2"]
[Date "2023.04.25"]
[WhiteClock "0:00:08"]
[BlackClock "0:00:04"]

1. d4 {[%clk 0:02:59]}  Nf6 {[%clk 0:02:58]} 2. c4 {[%clk 0:02:59]}  e6 {[%clk 0:02:55]} 3. Nc3 {[%clk 0:02:58]}  d5 {[%clk 0:02:54]} 4. cxd5 {[%clk 0:02:57]}  exd5 {[%clk 0:02:55]} 5. Bg5 {[%clk 0:02:57]}  Bb4 {[%clk 0:02:54]} 6. e3 {[%clk 0:02:56]}  h6 {[%clk 0:02:53]} 7. Bh4 {[%clk 0:02:56]}  g5 {[%clk 0:02:53]} 8. Bg3 {[%clk 0:02:57]}  h5 {[%clk 0:02:54]} 9. Be5 {[%clk 0:02:52]}  Nc6 {[%clk 0:02:52]} 10. Bb5 {[%clk 0:02:46]}  Bd7 {[%clk 0:02:37]} 11. Bxc6 {[%clk 0:02:46]}  Bxc6 {[%clk 0:02:32]} 12. Ne2 {[%clk 0:02:44]}  Bb5 {[%clk 0:02:25]} 13. Qb3 {[%clk 0:02:38]}  a5 {[%clk 0:02:22]} 14. a3 {[%clk 0:02:36]}  Bc4 {[%clk 0:02:17]} 15. Qa4+ {[%clk 0:02:35]}  b5 {[%clk 0:02:13]} 16. Qc2 {[%clk 0:02:35]}  Bxc3+ {[%clk 0:02:10]} 17. Nxc3 {[%clk 0:02:32]}  a4 {[%clk 0:01:51]} 18. Qf5 {[%clk 0:02:32]}  Ra6 {[%clk 0:01:49]} 19. Qxg5 {[%clk 0:02:03]}  Rg8 {[%clk 0:01:49]} 20. Qf5 {[%clk 0:01:59]}  Qd7 {[%clk 0:01:43]} 21. Qxd7+ {[%clk 0:01:56]}  Kxd7 {[%clk 0:01:36]} 22. Rg1 {[%clk 0:01:48]}  Ng4 {[%clk 0:01:23]} 23. Bg3 {[%clk 0:01:46]}  Rh6 {[%clk 0:01:07]} 24. O-O-O {[%clk 0:01:20]}  h4 {[%clk 0:01:05]} 25. Bf4 {[%clk 0:01:20]}  Re6 {[%clk 0:01:05]} 26. Rd2 {[%clk 0:01:17]}  Nf6 {[%clk 0:00:55]} 27. h3 {[%clk 0:01:08]}  Nh5 {[%clk 0:00:42]} 28. Bh2 {[%clk 0:01:03]}  Reg6 {[%clk 0:00:25]} 29. f3 {[%clk 0:01:03]}  Ng3 {[%clk 0:00:23]} 30. Rf2 {[%clk 0:00:58]}  f5 {[%clk 0:00:21]} 31. Rd1 {[%clk 0:00:36]}  f4 {[%clk 0:00:20]} 32. e4 {[%clk 0:00:30]}  c6 {[%clk 0:00:14]} 33. Bxg3 {[%clk 0:00:29]}  Rxg3 {[%clk 0:00:08]} 34. Rdd2 {[%clk 0:00:28]}  dxe4 {[%clk 0:00:08]} 35. Nxe4 {[%clk 0:00:28]}  R3g6 {[%clk 0:00:07]} 36. Kc2 {[%clk 0:00:28]}  Bd5 {[%clk 0:00:06]} 37. Kc3 {[%clk 0:00:28]}  Re8 {[%clk 0:00:07]} 38. Rde2 {[%clk 0:00:25]}  Kc7 {[%clk 0:00:05]} 39. Nc5 {[%clk 0:00:25]}  Rf8 {[%clk 0:00:04]} 40. Re7+ {[%clk 0:00:23]}  Kb6 {[%clk 0:00:04]} 41. Kb4 {[%clk 0:00:18]}  Rb8 {[%clk 0:00:02]} 42. Nd7+ {[%clk 0:00:18]}  Kc7 {[%clk 0:00:03]} 43. Ne5+ {[%clk 0:00:18]}  Kd6 {[%clk 0:00:02]} 44. Nxg6 {[%clk 0:00:19]}  Rg8 {[%clk 0:00:02]} 45. Nxf4 {[%clk 0:00:16]}  Kxe7 {[%clk 0:00:02]} 46. Nxd5+ {[%clk 0:00:16]}  cxd5 {[%clk 0:00:03]} 47. Kc5 {[%clk 0:00:17]}  Ke6 {[%clk 0:00:02]} 48. Re2+ {[%clk 0:00:17]}  Kf5 {[%clk 0:00:03]} 49. Kxd5 {[%clk 0:00:17]}  Rc8 {[%clk 0:00:03]} 50. Kd6 {[%clk 0:00:17]}  Rd8+ {[%clk 0:00:02]} 51. Kc5 {[%clk 0:00:16]}  Kf4 {[%clk 0:00:02]} 52. d5 {[%clk 0:00:16]}  Rc8+ {[%clk 0:00:02]} 53. Kxb5 {[%clk 0:00:16]}  Rb8+ {[%clk 0:00:02]} 54. Kxa4 {[%clk 0:00:16]}  Rd8 {[%clk 0:00:03]} 55. b4 {[%clk 0:00:15]}  Rxd5 {[%clk 0:00:03]} 56. b5 {[%clk 0:00:16]}  Rd4+ {[%clk 0:00:03]} 57. Ka5 {[%clk 0:00:16]}  Rd5 {[%clk 0:00:02]} 58. a4 {[%clk 0:00:16]}  Kg3 {[%clk 0:00:02]} 59. Ka6 {[%clk 0:00:16]}  Rd4 {[%clk 0:00:03]} 60. a5 {[%clk 0:00:16]}  Rd1 {[%clk 0:00:02]} 61. b6 {[%clk 0:00:16]}  Kh2 {[%clk 0:00:02]} 62. b7 {[%clk 0:00:16]}  Rb1 {[%clk 0:00:03]} 63. Ka7 {[%clk 0:00:15]}  Kh1 {[%clk 0:00:03]} 64. a6 {[%clk 0:00:15]}  Ra1 {[%clk 0:00:04]} 65. b8=Q {[%clk 0:00:13]}  Rc1 {[%clk 0:00:04]} 66. Qb2 {[%clk 0:00:11]}  Rf1 {[%clk 0:00:04]} 67. Kb6 {[%clk 0:00:10]}  Rg1 {[%clk 0:00:04]} 68. a7 {[%clk 0:00:10]}  Rf1 {[%clk 0:00:04]} 69. a8=Q {[%clk 0:00:09]}  Rg1 {[%clk 0:00:04]} 70. f4 {[%clk 0:00:09]}  Rxg2 {[%clk 0:00:04]} 71. Qxg2# {[%clk 0:00:08]} 1-0


[Site "https://www.chess.com"]